bitfinex/quotes_ETHUSD_20260130
["timestamp","ask_amount","ask_price","bid_price","bid_amount"]
[1769757387093,2.699492,2744.9,2743.4,0.002]
[1769757387397,0.3434611,2744.8,2743.4,0.002]
[1769757387592,5.580554,2744.9,2743.4,0.002]
[1769757387909,1.72190134,2745.0,2743.4,0.002]
[1769757387910,0.98678239,2744.8,2743.4,0.002]
[1769757388273,3.122727,2744.7,2743.4,0.002]
[1769757388505,0.98678239,2744.4,2742.5,0.99278447]
[1769757389012,0.98678239,2744.4,2742.5,0.99078447]
[1769757389394,0.98678239,2744.3,2742.1,0.99478447]
[1769757389601,0.98678239,2744.3,2742.2,1.54947845]
[1769757389780,0.91084963,2744.7,2742.2,1.54947845]
[1769757389781,0.98678239,2743.9,2742.2,1.54947845]
[1769757389987,0.98678239,2743.9,2742.1,0.99478447]
[1769757390288,0.98678239,2743.9,2742.1,0.002]
[1769757390488,10.86401439,2743.8,2742.1,0.002]
[1769757390704,4.554306,2743.6,2742.1,0.002]
[1769757390903,2.208991,2743.6,2742.1,0.002]
[1769757391077,0.2208991,2743.6,2742.1,0.002]
[1769757391279,0.91104724,2744.1,2742.1,0.002]
[1769757391280,0.98678239,2743.7,2742.1,0.002]
[1769757391508,5.698523,2743.4,2742.1,0.002]
[1769757391671,16.794547,2743.9,2742.1,0.002]
[1769757392007,0.44103401,2744.7,2742.1,0.99478447]
[1769757392008,0.1024,2744.3,2742.1,0.99478447]
[1769757392193,0.98678239,2744.5,2742.1,0.99478447]
[1769757392504,0.98678239,2744.5,2742.2,0.99278447]
[1769757392703,1.01319669,2744.9,2742.2,0.99278447]
[1769757392704,3.33123339,2744.4,2742.2,0.99278447]
[1769757392875,5.020418,2744.2,2742.2,0.99278447]
[1769757393668,0.98678239,2744.1,2742.2,0.99278447]
[1769757394095,0.1024,2744.7,2742.2,0.99278447]
[1769757394407,6.177531,2744.6,2742.3,0.99278447]
[1769757394805,2.756067,2744.5,2742.4,0.99278447]
[1769757395006,0.2756067,2744.4,2742.4,0.99278447]
[1769757395177,4.292067,2744.6,2742.4,0.99278447]
[1769757395711,0.83751895,2745.0,2742.4,0.99278447]
[1769757395889,5.177922,2744.9,2742.6,0.92581751]
[1769757396287,6.14645321,2744.9,2742.6,0.92581751]
[1769757396501,4.898327,2744.8,2742.6,0.92581751]
[1769757396701,0.58668582,2744.7,2742.7,1.15233534]
[1769757397011,5.522732,2744.8,2742.7,1.15233534]
[1769757397685,3.765,2744.8,2742.7,1.15233534]
[1769757397999,2.878481,2744.8,2742.7,1.15233534]
[1769757399092,0.96853121,2744.8,2742.7,1.15233534]
[1769757399413,6.612373,2744.7,2742.7,1.15233534]
[1769757399590,8.022797,2744.4,2742.7,1.15233534]
[1769757399977,6.549803,2744.4,2742.7,1.15233534]
[1769757400611,0.96853121,2744.4,2742.7,0.18373895]
[1769757400812,0.96853121,2744.4,2742.5,0.002]
[1769757401381,0.96853121,2744.4,2742.5,0.97059639]
[1769757402014,9.974581,2744.1,2742.5,0.002]
[1769757402180,0.96853121,2744.1,2742.5,0.002]
[1769757402381,4.319402,2744.0,2742.5,0.002]
[1769757402580,0.96853121,2744.1,2742.5,0.002]
[1769757402581,0.52879332,2743.9,2742.5,0.002]
[1769757402787,3.108737,2744.0,2742.5,0.002]
[1769757403341,1.70365016,2745.0,2742.6,0.96859639]
[1769757403495,0.96853121,2744.7,2742.6,0.96859639]
[1769757403680,0.96853121,2744.6,2742.6,0.96859639]
[1769757404014,0.96853121,2744.6,2742.7,0.96859639]
[1769757404181,0.1024,2744.9,2742.8,1.54685964]
[1769757404182,9.140331,2744.5,2742.8,1.54685964]
[1769757404521,0.96853121,2744.3,2742.5,0.002]
[1769757404804,0.9108685,2744.7,2742.5,0.002]
[1769757404805,0.96853121,2744.0,2742.5,0.002]
[1769757405186,4.916711,2744.4,2742.5,0.97059639]
[1769757405380,2.42936,2744.4,2742.5,0.97059639]
[1769757405587,0.96853121,2744.5,2742.6,0.96859639]
[1769757405789,0.1024,2744.8,2742.7,0.96859639]
[1769757405994,2.335674,2744.7,2742.7,0.96859639]
[1769757406209,5.02096321,2744.5,2742.7,0.96859639]
[1769757406408,11.628595,2744.4,2742.7,0.96859639]
[1769757406596,11.94290621,2744.4,2742.7,0.96859639]
[1769757406797,12.62978621,2744.2,2742.5,0.002]
[1769757407113,0.96853121,2744.0,2742.5,0.002]
[1769757408216,17.57852421,2743.9,2742.5,0.002]
[1769757408518,2.34695027,2743.8,2742.5,0.002]
[1769757408824,0.96853121,2743.8,2742.5,0.002]
[1769757409714,2.410773,2743.7,2742.5,0.002]
[1769757410018,0.96853121,2743.8,2742.5,0.002]
[1769757410912,4.502994,2743.7,2742.5,0.002]
[1769757411432,4.132421,2743.7,2742.5,0.002]
[1769757411591,1.47862643,2743.6,2742.5,0.002]
[1769757413826,3.342343,2743.3,2742.3,0.002]
[1769757414826,4.35609522,2743.6,2742.3,0.002]
[1769757414827,0.51009522,2743.6,2742.3,0.002]
[1769757415031,0.96853121,2744.2,2742.4,0.96859639]
[1769757415429,3.766408,2744.1,2742.4,0.96859639]
[1769757415841,5.28332,2744.0,2742.4,0.96859639]
[1769757416035,0.96853121,2743.9,2742.3,0.002]
[1769757416234,0.96853121,2743.7,2742.3,0.002]
[1769757416435,7.632376,2743.5,2742.3,0.002]
[1769757416639,0.96853121,2744.0,2742.3,0.002]
[1769757416861,5.586842,2743.8,2742.3,0.002]
[1769757417336,4.619842,2743.8,2742.3,0.002]
[1769757417518,0.8465842,2743.7,2742.3,0.002]
[1769757417713,4.01879,2743.8,2742.3,0.002]
[1769757418032,3.431271,2743.8,2742.3,0.002]
[1769757418451,0.96853121,2743.8,2742.3,0.002]
[1769757419020,3.846,2743.9,2742.3,0.97059639]
[1769757419645,3.40102121,2743.7,2742.3,0.002]
[1769757419825,0.34010212,2743.6,2742.3,0.97059639]
[1769757420026,3.746927,2743.9,2742.3,0.97059639]
[1769757420248,0.44203401,2744.4,2742.3,0.97059639]
[1769757420451,0.001,2744.4,2742.3,0.97059639]
[1769757420655,0.001,2744.4,2742.5,0.96859639]
[1769757422058,0.73511895,2745.0,2743.2,0.96859639]
[1769757422267,10.0,2746.9,2743.0,3.846]
[1769757422268,0.96853121,2746.2,2743.5,0.96859639]
[1769757422626,0.96653121,2746.2,2743.8,0.96859639]
[1769757422865,0.96453121,2746.2,2743.9,0.96859639]
[1769757423067,0.96253121,2746.2,2744.0,0.96859639]
[1769757423267,0.96053121,2746.2,2744.0,0.96859639]
[1769757423437,0.95853121,2746.2,2744.1,0.96859639]
[1769757423627,0.44103401,2746.8,2744.1,0.96859639]
[1769757423628,1.40956522,2746.1,2744.1,0.96859639]
[1769757423828,0.1024,2746.7,2744.1,0.96859639]
[1769757423829,5.287558,2746.4,2744.1,0.96859639]
[1769757424030,0.5287558,2746.3,2744.1,0.96859639]
[1769757424372,8.518538,2746.4,2744.1,0.96859639]
[1769757424558,0.44103401,2746.6,2744.1,0.96859639]
[1769757424559,12.49625821,2746.2,2744.1,0.96859639]
[1769757424764,0.96853121,2746.2,2744.1,0.96859639]
[1769757425471,0.96853121,2746.6,2744.2,0.96859639]
[1769757425976,4.365457,2746.9,2744.2,0.96859639]
[1769757426272,0.53339882,2746.8,2744.4,0.96859639]
[1769757426583,0.9053333,2746.6,2744.4,0.96859639]
[1769757426874,0.9053333,2746.5,2744.4,0.96859639]
[1769757429101,0.9053333,2746.5,2744.5,0.92532506]
[1769757433389,0.9053333,2746.2,2744.3,0.18796312]
[1769757433566,0.9053333,2746.0,2744.1,0.92532506]
[1769757433884,0.9053333,2746.0,2744.3,0.002]
[1769757434091,0.9053333,2746.0,2744.3,0.92732506]
[1769757434258,0.9063333,2746.3,2744.3,0.92732506]
[1769757434460,0.9063333,2746.3,2744.4,0.92532506]
[1769757434765,0.73263333,2746.2,2744.4,0.92532506]
[1769757437680,0.72463333,2746.2,2744.4,0.92532506]
[1769757439496,0.9063333,2746.3,2744.7,0.92532506]
[1769757439497,0.001,2746.3,2744.7,0.92532506]
[1769757440000,0.001,2746.3,2744.8,0.92532506]
[1769757442105,0.001,2746.3,2744.9,0.92532506]
[1769757444442,0.001,2746.3,2745.0,0.92532506]
[1769757444614,0.001,2746.3,2745.2,0.92532506]
[1769757446316,0.001,2746.3,2745.3,0.92532506]
[1769757447695,0.9053333,2747.2,2745.3,0.92532506]
[1769757449415,0.9053333,2747.1,2745.1,0.18361001]
[1769757450511,0.9053333,2746.7,2745.1,0.18361001]
[1769757450724,0.9053333,2746.7,2744.9,0.002]
[1769757451425,0.9053333,2746.5,2744.9,0.002]
[1769757451630,0.9053333,2746.4,2744.9,0.002]
[1769757459435,0.9053333,2746.4,2745.1,0.002]
[1769757459628,0.91260263,2746.2,2745.1,0.002]
[1769757460832,0.91060263,2746.2,2745.1,0.002]
[1769757463034,7.33060263,2746.2,2745.1,0.002]
[1769757463333,0.91260263,2746.1,2745.1,0.002]
[1769757467406,6.42,2746.2,2745.1,0.002]
[1769757467607,0.71525333,2746.1,2745.1,0.002]
[1769757468005,0.91260263,2746.0,2745.1,0.002]
[1769757470109,0.71525333,2746.1,2745.1,0.002]
[1769757470314,0.91260263,2746.0,2745.1,0.002]
[1769757471205,0.71525333,2746.1,2745.1,0.002]
[1769757471409,0.71352533,2746.0,2745.1,0.002]
[1769757475945,6.42,2746.2,2745.1,0.90928474]
[1769757476146,0.91260263,2746.6,2745.1,0.90928474]
[1769757478616,0.91260263,2747.3,2745.1,0.90928474]
[1769757478840,0.91260263,2747.3,2745.2,0.90728474]
[1769757479140,0.001,2747.4,2745.4,0.90728474]
[1769757479452,0.001,2747.4,2745.6,0.90728474]
[1769757479823,0.001,2747.4,2745.8,0.90728474]
[1769757480563,0.91360263,2747.4,2745.8,0.90728474]
[1769757480759,0.39011735,2747.3,2745.2,0.90728474]
[1769757480962,0.91260263,2747.2,2745.2,0.90728474]
[1769757482063,0.91260263,2747.1,2745.2,0.90728474]
[1769757482369,1.13387666,2747.0,2745.1,0.002]
[1769757483370,1.13387666,2747.0,2745.3,0.002]
[1769757483753,1.13387666,2747.0,2745.3,0.90928474]
[1769757483952,0.91260263,2747.0,2745.3,0.90928474]
[1769757489950,0.001,2747.1,2745.3,0.90928474]
[1769757490185,0.001,2747.1,2745.4,0.92374968]
[1769757491749,0.001,2747.1,2745.5,0.92374968]
[1769757493277,0.001,2747.1,2745.6,0.92374968]
[1769757493591,0.001,2747.1,2745.8,0.92374968]
[1769757494893,0.001,2747.1,2745.9,0.92374968]
[1769757495661,0.97484973,2747.1,2745.6,0.92374968]
[1769757496207,0.001,2747.1,2745.6,0.92374968]
[1769757496560,0.001,2747.1,2745.7,0.92374968]
[1769757496765,0.001,2747.1,2745.9,0.92374968]
[1769757497415,0.001,2746.9,2745.9,0.92374968]
[1769757497565,0.001,2747.1,2745.8,0.18342885]
[1769757497767,0.001,2747.1,2745.9,0.92374968]
[1769757498276,0.001,2747.1,2746.0,0.92374968]
[1769757498591,0.001,2747.1,2746.2,0.92374968]
[1769757503592,0.001,2747.1,2746.1,0.18341888]
[1769757503593,0.97484973,2747.1,2746.1,0.18341888]
[1769757503770,0.97484973,2747.1,2745.8,0.18342885]
[1769757505004,0.97484973,2747.1,2745.8,1.10717853]
[1769757509698,0.97484973,2747.1,2746.0,0.002]
[1769757509865,0.001,2746.9,2746.0,0.002]
[1769757510070,0.97484973,2746.9,2746.0,0.002]
[1769757510468,0.97484973,2746.9,2745.5,0.002]
[1769757510679,0.97484973,2746.9,2745.3,0.002]
[1769757510680,3.847,2746.9,2745.3,0.002]
[1769757510977,0.97384973,2746.7,2744.9,0.92574968]
[1769757511183,0.97384973,2746.7,2745.0,0.92574968]
[1769757511512,0.97384973,2746.5,2744.7,0.92574968]
[1769757511664,0.97384973,2746.5,2744.7,0.92374968]
[1769757513182,0.97384973,2746.5,2744.3,0.002]
[1769757513183,0.97384973,2746.5,2744.4,0.91774968]
[1769757513584,0.97384973,2746.3,2744.3,0.002]
[1769757514175,0.97384973,2746.3,2744.3,0.92574968]
[1769757514684,0.97384973,2746.1,2744.3,0.92574968]
[1769757518910,0.93359072,2746.4,2744.4,0.93580887]
[1769757519271,0.93359072,2746.4,2744.6,0.93580887]
[1769757520008,0.93359072,2746.8,2744.6,0.93580887]
[1769757520503,0.001,2746.9,2745.0,0.93580887]
[1769757520711,0.001,2746.9,2745.4,0.93580887]
[1769757520915,0.001,2746.9,2745.5,0.93580887]
[1769757521072,0.93459072,2746.9,2744.8,0.93580887]
[1769757521410,0.93459072,2746.9,2745.2,1.84648435]
[1769757521589,0.93459072,2746.9,2745.3,1.12045731]
[1769757521793,0.001,2746.9,2745.3,1.12045731]
[1769757522308,0.001,2746.1,2745.3,1.12045731]
[1769757522675,0.001,2746.1,2745.5,0.93580887]
[1769757524597,0.001,2746.1,2745.3,14.68464844]
[1769757524797,0.001,2746.1,2745.4,1.46846484]
[1769757525110,0.001,2746.1,2745.3,0.18464844]
[1769757527807,0.001,2746.1,2745.3,1.12045731]
[1769757528124,0.001,2746.9,2745.3,1.12045731]
[1769757528718,0.93459072,2746.9,2745.3,1.12045731]
[1769757530102,0.93459072,2746.9,2745.3,0.18464844]
[1769757530411,0.93459072,2746.9,2744.9,0.93580887]
[1769757531686,0.93459072,2746.9,2744.6,0.93580887]
[1769757531886,0.93359072,2746.4,2744.0,3.10993369]
[1769757532096,0.93359072,2746.2,2744.0,3.10993369]
[1769757532296,0.93359072,2746.0,2744.0,3.10993369]
[1769757532497,0.93359072,2746.0,2744.0,2.17412482]
[1769757532888,0.93359072,2746.0,2744.3,0.93780887]
[1769757534123,0.93359072,2746.4,2744.3,0.93780887]
[1769757535224,0.93359072,2746.4,2744.5,0.93580887]
[1769757535391,0.93359072,2746.4,2744.6,1.12048435]
[1769757537986,0.93359072,2746.4,2744.6,0.18467548]
[1769757542607,0.93359072,2746.4,2744.6,1.12048435]
[1769757543006,0.93359072,2746.4,2744.7,0.93580887]
[1769757544503,0.93359072,2746.4,2744.8,0.93580887]
[1769757544708,0.93359072,2746.4,2744.9,0.18466382]
[1769757544915,0.93359072,2746.4,2744.7,0.93580887]
[1769757545510,0.93359072,2746.4,2744.8,0.002]
[1769757548509,4.7562223,2746.6,2744.8,0.002]
[1769757548510,0.96243936,2746.3,2744.8,0.002]
[1769757549418,0.96243936,2746.1,2744.8,0.002]
[1769757550713,0.96243936,2746.1,2744.8,0.96760589]
[1769757551010,0.96243936,2746.4,2744.8,0.96760589]
[1769757556351,0.96243936,2746.4,2744.8,0.002]
[1769757556552,0.96243936,2746.1,2744.8,0.002]
[1769757556753,0.96243936,2745.7,2744.5,0.002]
[1769757557543,0.96243936,2745.7,2745.0,0.002]
[1769757558417,0.96243936,2746.0,2745.0,0.002]
[1769757558852,0.001,2746.2,2745.0,0.002]
[1769757559223,0.96343936,2746.2,2745.0,0.002]
[1769757560952,0.96343936,2746.2,2745.0,0.96760589]
[1769757561456,0.001,2746.2,2745.0,0.96760589]
[1769757561844,0.001,2746.2,2745.2,0.96560589]
[1769757563837,0.001,2746.2,2745.3,0.96560589]
[1769757564756,0.34317798,2747.6,2745.7,1.19917619]
[1769757565057,0.34117798,2747.6,2745.8,0.96560589]
[1769757565352,0.33717798,2747.6,2746.1,0.96560589]
[1769757565559,0.33517798,2747.6,2746.0,0.96560589]
[1769757565724,0.33317798,2747.6,2746.2,0.96560589]
[1769757566059,0.33117798,2747.6,2746.2,0.96560589]
[1769757566260,0.32917798,2747.6,2746.2,0.96560589]
[1769757566463,0.32717798,2747.6,2746.2,0.96560589]
[1769757566675,0.32517798,2747.6,2746.2,0.96560589]
[1769757566960,0.32317798,2747.6,2746.2,0.96560589]
[1769757567258,3.82823443,2748.8,2746.1,0.18760542]
[1769757567259,0.96243936,2748.7,2746.7,0.96560589]
[1769757567557,0.96243936,2748.7,2746.9,0.96560589]
[1769757569576,1.28276036,2749.4,2747.0,1.19917619]
[1769757569577,0.96243936,2749.3,2747.0,1.19917619]
[1769757569738,0.3734701,2749.4,2747.9,0.96560589]
[1769757569930,0.96243936,2750.1,2748.3,0.96560589]
[1769757570130,0.96243936,2750.5,2748.3,0.96560589]
[1769757570332,0.19848054,2750.7,2748.5,0.96560589]
[1769757570333,0.96243936,2750.4,2748.5,0.96560589]
[1769757570894,0.96243936,2750.2,2747.1,0.96560589]
[1769757571179,0.96243936,2749.8,2747.5,0.96560589]
[1769757571378,6.6,2749.9,2747.5,0.96560589]
[1769757571379,0.96243936,2749.6,2747.5,0.96560589]
[1769757571561,0.96243936,2750.3,2747.9,0.96560589]
[1769757571762,0.96243936,2750.3,2748.5,0.96560589]
[1769757572279,0.96243936,2750.3,2747.9,0.96560589]
[1769757573898,0.96243936,2749.9,2747.5,0.96560589]
[1769757574049,0.96243936,2749.7,2747.5,0.96560589]
[1769757574250,1.29911314,2750.3,2747.9,0.96560589]
[1769757574251,1.35255671,2750.3,2747.9,0.96560589]
[1769757574555,0.96243936,2750.3,2748.2,0.96560589]
[1769757575972,0.96243936,2750.3,2748.4,0.90536046]
[1769757577776,0.96243936,2750.3,2748.5,0.9245282]
[1769757577991,0.96243936,2750.3,2748.6,0.18341429]
[1769757578749,0.97046841,2750.1,2748.6,0.18341429]
[1769757579099,0.97046841,2750.5,2748.4,0.9245282]
[1769757580779,0.97046841,2750.5,2748.5,0.9245282]
[1769757581867,0.97046841,2750.3,2748.1,0.9245282]
[1769757582269,0.97046841,2750.3,2748.5,0.9245282]
[1769757582562,0.97880661,2750.7,2748.5,0.9245282]
[1769757583166,0.001,2750.1,2748.5,0.9245282]
[1769757583963,0.001,2750.1,2748.6,0.9245282]
[1769757584165,0.001,2750.1,2748.8,0.9245282]
[1769757587460,0.97146841,2750.1,2748.7,0.18341085]
[1769757587662,0.97146841,2750.1,2748.4,0.9265282]
[1769757587861,0.97146841,2750.1,2748.5,0.9245282]
[1769757588592,0.97146841,2750.1,2748.6,0.9245282]
[1769757589984,0.97146841,2750.1,2748.4,0.002]
[1769757590190,0.001,2750.1,2748.6,0.9245282]
[1769757591092,0.001,2750.1,2748.7,3.846]
[1769757591278,0.001,2750.1,2748.4,1.09522311]
[1769757591279,0.97146841,2750.1,2748.4,0.18561961]
[1769757591481,0.97046841,2749.9,2748.4,0.002]
[1769757591684,0.97046841,2749.5,2748.1,0.002]
[1769757591993,0.97046841,2749.3,2748.1,0.002]
[1769757594610,0.97046841,2749.1,2747.1,0.002]
[1769757594762,0.97046841,2749.1,2746.8,1.13546744]
[1769757594962,0.97046841,2749.1,2746.9,1.11237494]
[1769757595195,0.97046841,2749.1,2746.9,1.11037494]
[1769757595502,0.97046841,2749.1,2746.9,1.10637494]
[1769757595663,0.97046841,2749.1,2746.9,0.17984674]
[1769757595664,0.97046841,2748.9,2746.9,0.17984674]
[1769757595864,0.97046841,2748.7,2746.9,0.17984674]
[1769757596076,0.97046841,2748.5,2746.9,1.10437494]
[1769757596377,0.97046841,2748.5,2748.0,0.002]
[1769757598179,0.97046841,2748.5,2747.0,0.002]
[1769757600492,0.90948824,2748.8,2747.0,0.002]
[1769757600493,0.97046841,2748.4,2747.0,0.002]
[1769757600906,0.97046841,2748.4,2746.1,0.18760542]
[1769757600907,0.97046841,2748.2,2746.1,0.18760542]
[1769757601110,0.97046841,2747.8,2745.8,0.9245282]
[1769757601680,0.97046841,2747.8,2745.5,0.9245282]
[1769757601924,0.97046841,2747.8,2745.9,0.9245282]
[1769757603833,0.97046841,2747.8,2745.9,0.9165282]
[1769757604809,0.97046841,2747.8,2745.4,0.9245282]
[1769757605110,0.97046841,2747.8,2745.5,1.1080428]
[1769757606483,0.98664957,2747.4,2745.5,1.1080428]
[1769757606819,0.98664957,2747.4,2745.5,0.1835146]
[1769757606985,0.98664957,2747.2,2745.0,0.002]
[1769757607185,0.1024,2748.0,2745.0,0.002]
[1769757607186,0.98664957,2747.0,2745.0,0.002]
[1769757607593,0.98664957,2747.0,2745.0,0.9842249]
[1769757608091,0.98664957,2747.0,2745.0,0.002]
[1769757608506,0.98664957,2746.6,2745.0,0.002]
[1769757608738,0.98664957,2746.4,2745.0,0.002]
[1769757613530,0.98664957,2746.0,2745.0,0.002]
[1769757614412,0.98664957,2746.3,2745.0,0.002]
[1769757614834,0.98664957,2746.3,2744.8,0.002]
[1769757615044,0.98664957,2745.9,2744.3,0.002]
[1769757615249,0.98664957,2745.9,2744.3,0.9842249]
[1769757616308,0.98664957,2745.7,2744.3,0.9842249]
[1769757616949,0.98664957,2745.7,2744.3,0.002]
[1769757617405,0.98664957,2745.6,2744.3,0.002]
[1769757619934,0.98664957,2745.6,2744.5,0.002]
[1769757623050,1.89721737,2745.6,2744.0,0.002]
[1769757623232,1.19358832,2745.7,2744.0,0.002]
[1769757623233,0.98664957,2745.3,2744.0,0.002]
[1769757625142,0.98664957,2745.1,2744.0,0.002]
[1769757626810,0.98664957,2745.1,2743.8,0.002]
[1769757627205,0.98664957,2745.4,2743.8,0.9842249]
[1769757633068,0.98764957,2745.4,2744.0,0.002]
[1769757633538,0.98764957,2745.4,2744.0,0.9842249]
[1769757634662,0.98764957,2745.4,2744.0,0.002]
[1769757634868,0.98764957,2745.4,2744.0,0.9842249]
[1769757639368,0.98764957,2745.4,2744.0,0.002]
[1769757639571,0.97009334,2745.3,2744.0,0.002]
[1769757643975,0.001,2745.4,2744.0,0.94103113]
[1769757644976,0.001,2745.2,2744.2,0.93903113]
[1769757648661,0.001,2745.2,2744.1,0.1852137]
[1769757648868,0.97109334,2745.2,2744.0,0.002]
[1769757650093,0.001,2745.2,2744.1,0.93903113]
[1769757656478,0.001,2745.0,2744.1,0.93903113]
[1769757661038,0.001,2745.0,2744.0,0.002]
[1769757661225,0.001,2745.0,2744.0,0.94103113]
[1769757665445,0.97109334,2745.0,2744.0,0.94103113]
[1769757668025,0.001,2745.0,2744.1,0.90450947]
[1769757671373,0.001,2745.0,2744.2,0.90450947]
[1769757671685,0.001,2745.0,2744.0,0.90650947]
[1769757672178,0.94643302,2745.0,2744.0,0.90650947]
[1769757672529,0.94643302,2745.0,2744.0,0.002]
[1769757674366,0.94643302,2745.0,2743.8,0.002]
[1769757674367,1.4241337,2744.9,2743.8,0.002]
[1769757674536,0.94543302,2744.8,2743.7,0.002]
[1769757675942,0.94543302,2744.6,2743.7,0.002]
[1769757676143,0.94543302,2744.6,2742.8,0.90450947]
[1769757676467,0.94543302,2744.4,2742.8,0.90450947]
[1769757676635,0.94543302,2744.4,2743.0,0.90650947]
[1769757678438,0.94543302,2744.7,2743.2,0.90650947]
[1769757680468,0.94543302,2744.7,2743.7,0.002]
[1769757689964,0.001,2744.8,2743.7,0.002]
[1769757689965,0.94543302,2744.5,2743.7,0.002]
[1769757691443,0.94543302,2744.4,2743.7,0.002]
[1769757691644,0.94543302,2744.3,2743.7,0.002]
[1769757693590,0.94543302,2744.3,2743.4,0.002]
[1769757698873,0.95926743,2744.2,2743.2,0.002]
[1769757700397,0.95926743,2744.1,2743.2,0.002]
[1769757701589,0.95926743,2744.4,2743.2,0.97021905]
[1769757703267,0.95926743,2744.3,2743.2,0.97021905]
[1769757703468,0.95926743,2744.3,2743.2,0.002]
[1769757706799,0.95926743,2744.3,2743.4,0.002]
[1769757706983,0.001,2744.2,2743.4,0.002]
[1769757707189,0.96026743,2744.2,2743.4,0.002]
[1769757710440,0.001,2744.2,2743.4,0.97021905]
[1769757711097,0.001,2744.2,2743.4,0.002]
[1769757711434,0.96026743,2744.2,2743.4,0.002]
[1769757714602,0.96026743,2744.2,2743.2,0.002]
[1769757714907,0.96026743,2744.2,2742.5,0.96821905]
[1769757714908,0.95926743,2744.0,2742.5,0.96821905]
[1769757715110,0.95926743,2743.8,2742.5,0.96821905]
[1769757715318,0.95926743,2743.8,2742.7,0.97021905]
[1769757716506,0.95926743,2743.8,2742.7,0.002]
[1769757716720,0.95926743,2743.8,2742.7,0.97021905]
[1769757716920,0.001,2744.2,2742.7,0.97021905]
[1769757716921,0.95926743,2744.1,2742.7,0.97021905]
[1769757718741,0.95926743,2744.1,2742.9,0.97021905]
[1769757719044,0.001,2744.2,2742.9,0.97021905]
[1769757719045,0.96026743,2744.0,2742.9,0.97021905]
[1769757721726,0.96026743,2744.0,2742.9,0.002]
[1769757722658,0.96026743,2744.0,2742.9,0.97021905]
[1769757723321,0.96026743,2744.0,2742.9,0.002]
[1769757723662,0.95926743,2743.8,2742.6,0.002]
[1769757724631,0.95926743,2743.8,2742.6,0.97021905]
[1769757724836,0.73802674,2743.9,2742.6,0.97021905]
[1769757725024,0.001,2744.0,2742.6,0.97021905]
[1769757729358,0.98448464,2744.0,2742.6,0.97021905]
[1769757730657,0.001,2743.8,2742.6,0.97021905]
[1769757735442,0.001,2744.0,2742.6,0.97021905]
[1769757735443,0.001,2744.0,2742.9,0.98618723]
[1769757737541,0.001,2744.0,2743.2,0.98618723]
[1769757737749,0.001,2744.0,2743.1,6.53931412]
[1769757737750,0.001,2744.0,2743.4,0.98618723]
[1769757742568,0.001,2743.8,2743.4,0.98618723]
[1769757746662,0.001,2743.8,2743.2,0.98618723]
[1769757751905,0.001,2744.0,2743.5,0.98618723]
[1769757754517,0.001,2743.8,2743.5,0.98618723]
[1769757754726,0.001,2743.8,2743.6,0.75275014]
[1769757755020,0.001,2744.2,2743.7,6.53931412]
[1769757755188,0.98448464,2744.8,2743.8,0.98618723]
[1769757755382,0.98248464,2744.8,2743.8,0.98618723]
[1769757755582,0.98048464,2744.8,2743.8,0.98618723]
[1769757755917,0.97848464,2744.8,2743.8,0.98618723]
[1769757756221,0.97448464,2744.8,2743.6,0.75275014]
[1769757756395,0.97448464,2744.8,2743.5,0.96388757]
[1769757761322,0.001,2745.2,2743.7,0.96388757]
[1769757761525,0.91614373,2745.0,2743.7,0.96388757]
[1769757765424,0.90814373,2745.0,2743.8,0.96388757]
[1769757765755,0.90814373,2745.0,2743.5,0.96388757]
[1769757766451,0.001,2744.8,2743.9,0.002]
[1769757766614,0.91514373,2744.7,2743.9,0.002]
[1769757766948,0.91514373,2744.7,2743.9,0.96588757]
[1769757767982,0.91514373,2744.7,2743.9,0.002]
[1769757768582,0.91514373,2744.7,2743.9,0.96588757]
[1769757768858,0.001,2744.8,2743.9,0.96588757]
[1769757775071,0.91614373,2744.8,2743.9,0.96588757]
[1769757778256,0.91614373,2744.8,2744.1,0.002]
[1769757782454,0.91414373,2744.8,2744.1,0.002]
[1769757784276,0.91614373,2745.2,2744.1,0.002]
[1769757786984,0.91614373,2745.2,2744.1,0.97820997]
[1769757787357,0.001,2745.2,2744.2,0.97620997]
[1769757787553,0.001,2745.2,2744.4,0.97620997]
[1769757787881,0.001,2745.4,2744.5,0.97620997]
[1769757790278,0.001,2745.2,2744.3,0.002]
[1769757790480,0.95125055,2745.2,2744.3,0.002]
[1769757792783,0.95125055,2745.2,2744.3,0.97820997]
[1769757792972,0.001,2745.2,2744.3,0.97820997]
[1769757797587,0.001,2745.2,2744.4,0.97620997]
[1769757797890,0.001,2745.2,2744.6,0.97620997]
[1769757802089,0.001,2745.2,2744.4,0.764]
[1769757802090,0.95125055,2745.2,2744.4,0.764]
[1769757802296,0.95125055,2745.2,2744.3,0.002]
[1769757806268,0.95125055,2745.2,2744.3,0.97820997]
[1769757806571,1.19358832,2745.7,2745.0,0.97620997]
[1769757806788,1.19358832,2745.7,2745.2,0.97620997]
[1769757806789,1.09993198,2745.7,2745.2,0.97620997]
[1769757807572,0.95025055,2746.2,2745.2,0.97620997]
[1769757807990,0.95025055,2746.8,2745.3,0.97620997]
[1769757810519,0.45118316,2746.7,2745.1,0.75072004]
[1769757810719,0.95025055,2746.4,2744.8,1.27240684]
[1769757811713,0.95025055,2746.3,2744.8,1.27240684]
[1769757812719,0.95025055,2746.1,2744.8,1.1777505]
[1769757812929,0.95025055,2745.9,2744.8,0.1777505]
[1769757813227,0.95025055,2745.9,2744.3,0.002]
[1769757813622,0.80918468,2745.8,2744.3,0.002]
[1769757814703,0.80918468,2745.7,2744.3,0.002]
[1769757815517,0.80918468,2745.7,2744.5,0.002]
[1769757817343,0.80918468,2745.7,2744.5,0.96206514]
[1769757817835,0.80718468,2745.5,2744.5,0.96206514]
[1769757819533,0.64811985,2745.6,2744.5,0.96206514]
[1769757823612,1.45530453,2745.6,2744.5,0.96206514]
[1769757825941,0.80718468,2745.5,2744.5,0.002]
[1769757826311,0.80718468,2745.4,2744.5,0.002]
[1769757826518,0.80718468,2745.4,2744.3,0.002]
[1769757826519,0.80718468,2745.3,2744.3,0.002]
[1769757826723,0.80718468,2745.3,2744.1,0.002]
[1769757826926,0.80718468,2745.2,2743.9,0.002]
[1769757827127,0.80718468,2745.2,2744.5,0.002]